[Event "Titled Tuesday Blitz June 28 Late 2022"]
[White "Yuan, Qingyu"]
[Black "Sadhwani, Raunak"]
[WhiteFideId "8609772"]
[BlackFideId "35093487"]
[WhiteElo "2359"]
[BlackElo "2616"]
[Result "0-1"]
[Round "03"]
[TimeControl "180+1"]
[Date "2022.06.28"]
[WhiteClock "0:00:01"]
[BlackClock "0:00:05"]

1. e4 {[%clk 0:03:00]}  d6 {[%clk 0:03:00]} 2. d4 {[%clk 0:03:00]}  g6 {[%clk 0:03:01]} 3. Nf3 {[%clk 0:03:00]}  Bg7 {[%clk 0:03:02]} 4. Bc4 {[%clk 0:03:00]}  Nf6 {[%clk 0:02:57]} 5. Qe2 {[%clk 0:02:57]}  Nc6 {[%clk 0:02:57]} 6. h3 {[%clk 0:02:53]}  e5 {[%clk 0:02:54]} 7. dxe5 {[%clk 0:02:44]}  Nxe5 {[%clk 0:02:55]} 8. Nxe5 {[%clk 0:02:34]}  dxe5 {[%clk 0:02:55]} 9. O-O {[%clk 0:02:34]}  O-O {[%clk 0:02:56]} 10. Bg5 {[%clk 0:02:28]}  h6 {[%clk 0:02:56]} 11. Bh4 {[%clk 0:02:27]}  c6 {[%clk 0:02:54]} 12. c3 {[%clk 0:02:22]}  Qc7 {[%clk 0:02:53]} 13. Bxf6 {[%clk 0:02:12]}  Bxf6 {[%clk 0:02:54]} 14. Nd2 {[%clk 0:02:10]}  b5 {[%clk 0:02:44]} 15. Bb3 {[%clk 0:02:10]}  Bb7 {[%clk 0:02:45]} 16. a4 {[%clk 0:02:09]}  a6 {[%clk 0:02:45]} 17. c4 {[%clk 0:02:03]}  bxa4 {[%clk 0:02:35]} 18. Bxa4 {[%clk 0:01:53]}  Rfd8 {[%clk 0:02:32]} 19. Nb1 {[%clk 0:01:53]}  a5 {[%clk 0:02:31]} 20. Nc3 {[%clk 0:01:53]}  Rd4 {[%clk 0:02:30]} 21. Bc2 {[%clk 0:01:44]}  Rad8 {[%clk 0:02:23]} 22. Rfd1 {[%clk 0:01:44]}  Ba6 {[%clk 0:02:20]} 23. b3 {[%clk 0:01:36]}  Bg5 {[%clk 0:02:18]} 24. Rd3 {[%clk 0:01:25]}  Rxd3 {[%clk 0:02:08]} 25. Bxd3 {[%clk 0:01:25]}  Qb6 {[%clk 0:02:09]} 26. Qc2 {[%clk 0:01:16]}  Bc8 {[%clk 0:02:00]} 27. Rd1 {[%clk 0:01:09]}  Be6 {[%clk 0:01:59]} 28. Na4 {[%clk 0:00:54]}  Qb4 {[%clk 0:01:48]} 29. Be2 {[%clk 0:00:53]}  Rd4 {[%clk 0:01:46]} 30. Bg4 {[%clk 0:00:40]}  f5 {[%clk 0:01:22]} 31. exf5 {[%clk 0:00:30]}  gxf5 {[%clk 0:01:23]} 32. Bf3 {[%clk 0:00:26]}  Rxd1+ {[%clk 0:01:17]} 33. Qxd1 {[%clk 0:00:23]}  e4 {[%clk 0:01:18]} 34. Be2 {[%clk 0:00:20]}  Bf7 {[%clk 0:01:15]} 35. g3 {[%clk 0:00:16]}  e3 {[%clk 0:00:51]} 36. f4 {[%clk 0:00:15]}  Bf6 {[%clk 0:00:48]} 37. Kg2 {[%clk 0:00:14]}  c5 {[%clk 0:00:47]} 38. Qd3 {[%clk 0:00:09]}  Bd4 {[%clk 0:00:18]} 39. g4 {[%clk 0:00:10]}  fxg4 {[%clk 0:00:18]} 40. hxg4 {[%clk 0:00:10]}  Qd2 {[%clk 0:00:16]} 41. Qxd2 {[%clk 0:00:06]}  exd2 {[%clk 0:00:16]} 42. Bd1 {[%clk 0:00:04]}  Be3 {[%clk 0:00:12]} 43. Kf3 {[%clk 0:00:04]}  Bd4 {[%clk 0:00:10]} 44. Ke2 {[%clk 0:00:04]}  h5 {[%clk 0:00:11]} 45. gxh5 {[%clk 0:00:04]}  Bxh5+ {[%clk 0:00:11]} 46. Kxd2 {[%clk 0:00:04]}  Bg6 {[%clk 0:00:11]} 47. Bc2 {[%clk 0:00:05]}  Bf7 {[%clk 0:00:10]} 48. Be4 {[%clk 0:00:05]}  Kg7 {[%clk 0:00:10]} 49. Nc3 {[%clk 0:00:03]}  Kf6 {[%clk 0:00:10]} 50. Nb5 {[%clk 0:00:04]}  Ba1 {[%clk 0:00:09]} 51. Kd3 {[%clk 0:00:04]}  Bh5 {[%clk 0:00:09]} 52. Kc2 {[%clk 0:00:03]}  Bg4 {[%clk 0:00:08]} 53. Nc7 {[%clk 0:00:03]}  Be6 {[%clk 0:00:06]} 54. Bd3 {[%clk 0:00:03]}  Bd4 {[%clk 0:00:06]} 55. Be4 {[%clk 0:00:04]}  Be3 {[%clk 0:00:06]} 56. f5 {[%clk 0:00:04]}  Bf7 {[%clk 0:00:06]} 57. Kd3 {[%clk 0:00:04]}  Bd4 {[%clk 0:00:06]} 58. Bd5 {[%clk 0:00:02]}  Bh5 {[%clk 0:00:06]} 59. Be6 {[%clk 0:00:02]}  Bd1 {[%clk 0:00:06]} 60. Nd5+ {[%clk 0:00:03]}  Ke5 {[%clk 0:00:06]} 61. Ne3 {[%clk 0:00:02]}  Bxb3 {[%clk 0:00:06]} 62. Ng4+ {[%clk 0:00:02]}  Kd6 {[%clk 0:00:06]} 63. Bd5 {[%clk 0:00:02]}  a4 {[%clk 0:00:07]} 64. Ne3 {[%clk 0:00:02]}  Bxe3 {[%clk 0:00:06]} 65. Kc3 {[%clk 0:00:01]}  Bd4+ {[%clk 0:00:06]} 66. Kd2 {[%clk 0:00:01]}  a3 {[%clk 0:00:05]} 0-1


[Site "https://www.chess.com"]

[Event "Titled Tuesday Blitz June 28 Late 2022"]
[White "Ahn, Hongjin"]
[Black "Rizzo, Tobias"]
[WhiteFideId "13201492"]
[BlackFideId "30942691"]
[WhiteElo "1873"]
[BlackElo "2290"]
[Result "1-0"]
[Round "04"]
[TimeControl "180+1"]
[Date "2022.06.29"]
[WhiteClock "0:01:01"]
[BlackClock "0:00:02"]

1. Nf3 {[%clk 0:02:56]}  Nf6 {[%clk 0:02:59]} 2. g3 {[%clk 0:02:57]}  g6 {[%clk 0:03:00]} 3. Bg2 {[%clk 0:02:57]}  Bg7 {[%clk 0:03:00]} 4. O-O {[%clk 0:02:58]}  O-O {[%clk 0:03:01]} 5. c4 {[%clk 0:02:59]}  c5 {[%clk 0:03:01]} 6. Nc3 {[%clk 0:02:59]}  Nc6 {[%clk 0:03:01]} 7. d4 {[%clk 0:02:58]}  cxd4 {[%clk 0:03:00]} 8. Nxd4 {[%clk 0:02:59]}  a6 {[%clk 0:02:59]} 9. Nb3 {[%clk 0:02:59]}  Rb8 {[%clk 0:02:58]} 10. a4 {[%clk 0:02:55]}  d6 {[%clk 0:02:56]} 11. Be3 {[%clk 0:02:54]}  Ne5 {[%clk 0:02:53]} 12. Nd2 {[%clk 0:02:47]}  Be6 {[%clk 0:02:50]} 13. b3 {[%clk 0:02:45]}  Qc8 {[%clk 0:02:44]} 14. Rc1 {[%clk 0:02:43]}  Bh3 {[%clk 0:02:41]} 15. Nd5 {[%clk 0:02:31]}  Nxd5 {[%clk 0:02:38]} 16. cxd5 {[%clk 0:02:31]}  Qd7 {[%clk 0:02:37]} 17. Bd4 {[%clk 0:02:21]}  Bxg2 {[%clk 0:02:34]} 18. Kxg2 {[%clk 0:02:22]}  Rfc8 {[%clk 0:02:30]} 19. Bxe5 {[%clk 0:02:21]}  Bxe5 {[%clk 0:02:28]} 20. Nf3 {[%clk 0:02:21]}  Bg7 {[%clk 0:02:25]} 21. Qd3 {[%clk 0:02:22]}  Rc7 {[%clk 0:02:17]} 22. Rc4 {[%clk 0:02:14]}  Rbc8 {[%clk 0:02:15]} 23. Rfc1 {[%clk 0:02:13]}  Bb2 {[%clk 0:01:31]} 24. R1c2 {[%clk 0:02:09]}  Bg7 {[%clk 0:01:28]} 25. h4 {[%clk 0:02:05]}  h6 {[%clk 0:01:22]} 26. h5 {[%clk 0:01:54]}  g5 {[%clk 0:01:19]} 27. g4 {[%clk 0:01:47]}  b5 {[%clk 0:01:10]} 28. Rxc7 {[%clk 0:01:40]}  Rxc7 {[%clk 0:00:54]} 29. Rxc7 {[%clk 0:01:41]}  Qxc7 {[%clk 0:00:55]} 30. axb5 {[%clk 0:01:42]}  Qd7 {[%clk 0:00:38]} 31. bxa6 {[%clk 0:01:27]}  Qxg4+ {[%clk 0:00:37]} 32. Kf1 {[%clk 0:01:27]}  Qh3+ {[%clk 0:00:36]} 33. Ke1 {[%clk 0:01:28]}  Qh1+ {[%clk 0:00:32]} 34. Kd2 {[%clk 0:01:28]}  Qa1 {[%clk 0:00:30]} 35. Qc4 {[%clk 0:01:22]}  Qa5+ {[%clk 0:00:24]} 36. b4 {[%clk 0:01:18]}  Qb6 {[%clk 0:00:16]} 37. b5 {[%clk 0:01:16]}  Qa5+ {[%clk 0:00:14]} 38. Ke3 {[%clk 0:01:14]}  Qa3+ {[%clk 0:00:12]} 39. Ke4 {[%clk 0:01:13]}  Qb2 {[%clk 0:00:07]} 40. a7 {[%clk 0:01:04]}  f5+ {[%clk 0:00:02]} 41. Kxf5 {[%clk 0:01:04]}  Qf6+ {[%clk 0:00:03]} 42. Kg4 {[%clk 0:01:04]}  Qf8 {[%clk 0:00:03]} 43. b6 {[%clk 0:01:01]}  Qc8+ {[%clk 0:00:02]} 44. Qxc8+ {[%clk 0:01:01]} 1-0


[Site "https://www.chess.com"]

[Event "Titled Tuesday Blitz June 28 Late 2022"]
[White "Averjanov, Alexey"]
[Black "Estrada Nieto, Julian"]
[WhiteFideId "14109867"]
[BlackFideId "5101018"]
[WhiteElo "2683"]
[BlackElo "2463"]
[Result "1-0"]
[Round "04"]
[TimeControl "180+1"]
[Date "2022.06.29"]
[WhiteClock "0:00:28"]
[BlackClock "0:00:18"]

1. d4 {[%clk 0:03:00]}  d5 {[%clk 0:03:00]} 2. c4 {[%clk 0:03:01]}  dxc4 {[%clk 0:03:01]} 3. e3 {[%clk 0:03:00]}  Nf6 {[%clk 0:03:00]} 4. Bxc4 {[%clk 0:03:00]}  e6 {[%clk 0:03:00]} 5. Nf3 {[%clk 0:03:01]}  c5 {[%clk 0:03:01]} 6. O-O {[%clk 0:03:01]}  a6 {[%clk 0:03:01]} 7. b3 {[%clk 0:03:01]}  Nbd7 {[%clk 0:02:52]} 8. Bb2 {[%clk 0:02:55]}  b6 {[%clk 0:02:52]} 9. Nbd2 {[%clk 0:02:54]}  Bb7 {[%clk 0:02:52]} 10. Rc1 {[%clk 0:02:54]}  Be7 {[%clk 0:02:49]} 11. Qe2 {[%clk 0:02:54]}  O-O {[%clk 0:02:44]} 12. Rfd1 {[%clk 0:02:54]}  Qb8 {[%clk 0:02:31]} 13. a4 {[%clk 0:02:50]}  Rd8 {[%clk 0:02:28]} 14. h3 {[%clk 0:02:50]}  cxd4 {[%clk 0:02:21]} 15. Bxd4 {[%clk 0:02:40]}  Nc5 {[%clk 0:01:55]} 16. Ne5 {[%clk 0:02:33]}  b5 {[%clk 0:01:33]} 17. axb5 {[%clk 0:02:32]}  axb5 {[%clk 0:01:32]} 18. Bxb5 {[%clk 0:02:32]}  Ra2 {[%clk 0:01:27]} 19. Ra1 {[%clk 0:02:20]}  Rxa1 {[%clk 0:01:21]} 20. Rxa1 {[%clk 0:02:21]}  Nce4 {[%clk 0:01:16]} 21. Nxe4 {[%clk 0:02:18]}  Bxe4 {[%clk 0:01:16]} 22. Bc4 {[%clk 0:02:06]}  Bd5 {[%clk 0:01:16]} 23. Bxd5 {[%clk 0:01:58]}  Rxd5 {[%clk 0:01:15]} 24. Nc6 {[%clk 0:01:56]}  Qe8 {[%clk 0:01:14]} 25. Nxe7+ {[%clk 0:01:50]}  Qxe7 {[%clk 0:01:14]} 26. Ra8+ {[%clk 0:01:42]}  Rd8 {[%clk 0:01:13]} 27. Bxf6 {[%clk 0:01:35]}  Qxf6 {[%clk 0:01:05]} 28. Qa6 {[%clk 0:01:21]}  g6 {[%clk 0:00:57]} 29. Rxd8+ {[%clk 0:01:18]}  Qxd8 {[%clk 0:00:58]} 30. b4 {[%clk 0:01:16]}  Qd1+ {[%clk 0:00:57]} 31. Kh2 {[%clk 0:01:15]}  Qd2 {[%clk 0:00:48]} 32. b5 {[%clk 0:00:56]}  Qxf2 {[%clk 0:00:48]} 33. Qc8+ {[%clk 0:00:48]}  Kg7 {[%clk 0:00:46]} 34. Qc3+ {[%clk 0:00:45]}  Kh6 {[%clk 0:00:43]} 35. b6 {[%clk 0:00:43]}  Qe2 {[%clk 0:00:33]} 36. Qe5 {[%clk 0:00:35]}  Qa6 {[%clk 0:00:24]} 37. Qc7 {[%clk 0:00:31]}  Kg5 {[%clk 0:00:18]} 38. b7 {[%clk 0:00:28]} 1-0


[Site "https://www.chess.com"]

[Event "Titled Tuesday Blitz June 28 Late 2022"]
[White "Boder, Jan"]
[Black "Romero Ruscalleda, Josep"]
[WhiteFideId "16243226"]
[BlackFideId "2231859"]
[WhiteElo "2064"]
[BlackElo "2285"]
[Result "1-0"]
[Round "04"]
[TimeControl "180+1"]
[Date "2022.06.29"]
[WhiteClock "0:01:45"]
[BlackClock "0:02:04"]

1. e4 {[%clk 0:03:00]}  g6 {[%clk 0:03:00]} 2. d4 {[%clk 0:02:58]}  Bg7 {[%clk 0:03:01]} 3. Nf3 {[%clk 0:02:59]}  d6 {[%clk 0:03:01]} 4. c4 {[%clk 0:02:58]}  e5 {[%clk 0:02:59]} 5. dxe5 {[%clk 0:02:57]}  dxe5 {[%clk 0:03:00]} 6. Qxd8+ {[%clk 0:02:56]}  Kxd8 {[%clk 0:03:00]} 7. Nc3 {[%clk 0:02:53]}  c6 {[%clk 0:02:59]} 8. Be3 {[%clk 0:02:40]}  Bh6 {[%clk 0:02:56]} 9. O-O-O+ {[%clk 0:02:40]}  Bd7 {[%clk 0:02:53]} 10. Ng5 {[%clk 0:02:38]}  Bxg5 {[%clk 0:02:49]} 11. Bxg5+ {[%clk 0:02:39]}  f6 {[%clk 0:02:48]} 12. Be3 {[%clk 0:02:37]}  Kc7 {[%clk 0:02:47]} 13. f4 {[%clk 0:02:34]}  Be6 {[%clk 0:02:43]} 14. Be2 {[%clk 0:02:33]}  Nd7 {[%clk 0:02:41]} 15. g4 {[%clk 0:02:29]}  exf4 {[%clk 0:02:34]} 16. Bxf4+ {[%clk 0:02:28]}  Ne5 {[%clk 0:02:34]} 17. g5 {[%clk 0:02:25]}  Kb6 {[%clk 0:02:26]} 18. gxf6 {[%clk 0:02:01]}  Nxc4 {[%clk 0:02:22]} 19. b3 {[%clk 0:02:01]}  Na3 {[%clk 0:02:09]} 20. Na4+ {[%clk 0:01:47]}  Ka5 {[%clk 0:02:04]} 21. Bd2# {[%clk 0:01:45]} 1-0


[Site "https://www.chess.com"]

[Event "Titled Tuesday Blitz June 28 Late 2022"]
[White "Cappelletto, Joshuaede"]
[Black "Florescu, Codrut-Constantin"]
[WhiteFideId "2824383"]
[BlackFideId "1202200"]
[WhiteElo "1761"]
[BlackElo "2191"]
[Result "0-1"]
[Round "04"]
[TimeControl "180+1"]
[Date "2022.06.29"]
[WhiteClock "0:00:04"]
[BlackClock "0:00:18"]

1. e4 {[%clk 0:03:00]}  c5 {[%clk 0:02:59]} 2. Nf3 {[%clk 0:03:01]}  e6 {[%clk 0:02:59]} 3. Nc3 {[%clk 0:03:00]}  a6 {[%clk 0:02:59]} 4. d4 {[%clk 0:03:00]}  cxd4 {[%clk 0:02:59]} 5. Nxd4 {[%clk 0:03:01]}  Qc7 {[%clk 0:02:59]} 6. Be3 {[%clk 0:03:01]}  Nf6 {[%clk 0:02:59]} 7. Qf3 {[%clk 0:03:02]}  b5 {[%clk 0:02:57]} 8. O-O-O {[%clk 0:02:38]}  Bb7 {[%clk 0:02:54]} 9. Bxb5 {[%clk 0:02:34]}  axb5 {[%clk 0:02:53]} 10. Ndxb5 {[%clk 0:02:35]}  Qa5 {[%clk 0:02:48]} 11. Qg3 {[%clk 0:02:07]}  Na6 {[%clk 0:02:32]} 12. Nd6+ {[%clk 0:02:00]}  Bxd6 {[%clk 0:02:31]} 13. Qxg7 {[%clk 0:02:01]}  Rg8 {[%clk 0:02:22]} 14. Qxf6 {[%clk 0:02:00]}  Be5 {[%clk 0:02:14]} 15. Qf3 {[%clk 0:01:33]}  Bxc3 {[%clk 0:02:13]} 16. bxc3 {[%clk 0:01:23]}  Qa3+ {[%clk 0:01:28]} 17. Kd2 {[%clk 0:01:20]}  Qxa2 {[%clk 0:01:26]} 18. Rb1 {[%clk 0:00:53]}  Bc6 {[%clk 0:01:12]} 19. Qf6 {[%clk 0:00:23]}  Qc4 {[%clk 0:01:02]} 20. Bg5 {[%clk 0:00:22]}  Qc5 {[%clk 0:00:48]} 21. h4 {[%clk 0:00:14]}  h6 {[%clk 0:00:33]} 22. Bxh6 {[%clk 0:00:08]}  Qd6+ {[%clk 0:00:24]} 23. Kc1 {[%clk 0:00:08]}  Qe7 {[%clk 0:00:21]} 24. Qf4 {[%clk 0:00:07]}  Qa3+ {[%clk 0:00:20]} 25. Kd2 {[%clk 0:00:07]}  Nc5 {[%clk 0:00:20]} 26. f3 {[%clk 0:00:06]}  Rxg2+ {[%clk 0:00:19]} 27. Kd1 {[%clk 0:00:05]}  Qa2 {[%clk 0:00:19]} 28. Rc1 {[%clk 0:00:05]}  Qc4 {[%clk 0:00:19]} 29. Qf6 {[%clk 0:00:04]}  Qe2# {[%clk 0:00:18]} 0-1


[Site "https://www.chess.com"]

[Event "Titled Tuesday Blitz June 28 Late 2022"]
[White "Clarke, Brandon G I"]
[Black "Meissner, Felix"]
[WhiteFideId "400319"]
[BlackFideId "24671827"]
[WhiteElo "2414"]
[BlackElo "2350"]
[Result "0-1"]
[Round "04"]
[TimeControl "180+1"]
[Date "2022.06.28"]
[WhiteClock "0:01:02"]
[BlackClock "0:01:49"]

1. e4 {[%clk 0:03:00]}  c6 {[%clk 0:02:59]} 2. d4 {[%clk 0:03:00]}  g6 {[%clk 0:03:00]} 3. Nd2 {[%clk 0:02:58]}  d5 {[%clk 0:03:00]} 4. c3 {[%clk 0:02:57]}  dxe4 {[%clk 0:03:00]} 5. Nxe4 {[%clk 0:02:58]}  Nf6 {[%clk 0:03:00]} 6. Nxf6+ {[%clk 0:02:56]}  exf6 {[%clk 0:03:01]} 7. Nf3 {[%clk 0:02:57]}  Bg7 {[%clk 0:03:02]} 8. Bc4 {[%clk 0:02:48]}  O-O {[%clk 0:03:01]} 9. O-O {[%clk 0:02:49]}  a5 {[%clk 0:03:02]} 10. a4 {[%clk 0:02:48]}  Na6 {[%clk 0:03:01]} 11. Re1 {[%clk 0:02:46]}  Nc7 {[%clk 0:03:01]} 12. Bf4 {[%clk 0:02:45]}  Nd5 {[%clk 0:03:00]} 13. Bg3 {[%clk 0:02:44]}  Be6 {[%clk 0:02:57]} 14. Nd2 {[%clk 0:02:39]}  f5 {[%clk 0:02:56]} 15. Be5 {[%clk 0:02:37]}  f6 {[%clk 0:02:55]} 16. Bg3 {[%clk 0:02:37]}  Re8 {[%clk 0:02:55]} 17. Qb3 {[%clk 0:02:30]}  Qd7 {[%clk 0:02:54]} 18. h3 {[%clk 0:02:09]}  Bh6 {[%clk 0:02:54]} 19. Re2 {[%clk 0:02:09]}  Bf7 {[%clk 0:02:28]} 20. Rxe8+ {[%clk 0:01:54]}  Rxe8 {[%clk 0:02:29]} 21. Nf3 {[%clk 0:01:53]}  Nf4 {[%clk 0:02:20]} 22. Bxf7+ {[%clk 0:01:51]}  Qxf7 {[%clk 0:02:20]} 23. Qxf7+ {[%clk 0:01:51]}  Kxf7 {[%clk 0:02:21]} 24. Bxf4 {[%clk 0:01:52]}  Bxf4 {[%clk 0:02:20]} 25. Kf1 {[%clk 0:01:53]}  h5 {[%clk 0:02:19]} 26. Re1 {[%clk 0:01:50]}  Rxe1+ {[%clk 0:02:18]} 27. Kxe1 {[%clk 0:01:51]}  Ke6 {[%clk 0:02:18]} 28. Ke2 {[%clk 0:01:51]}  b5 {[%clk 0:02:18]} 29. b3 {[%clk 0:01:50]}  g5 {[%clk 0:02:15]} 30. Ne1 {[%clk 0:01:40]}  g4 {[%clk 0:02:13]} 31. Nd3 {[%clk 0:01:39]}  Bd6 {[%clk 0:02:13]} 32. Ke3 {[%clk 0:01:35]}  bxa4 {[%clk 0:02:07]} 33. bxa4 {[%clk 0:01:34]}  Kd5 {[%clk 0:02:08]} 34. Nb2 {[%clk 0:01:17]}  f4+ {[%clk 0:02:07]} 35. Kd3 {[%clk 0:01:16]}  f3 {[%clk 0:02:07]} 36. c4+ {[%clk 0:01:11]}  Ke6 {[%clk 0:02:06]} 37. d5+ {[%clk 0:01:01]}  cxd5 {[%clk 0:02:05]} 38. cxd5+ {[%clk 0:01:02]}  Kd7 {[%clk 0:01:49]} 0-1


[Site "https://www.chess.com"]

[Event "Titled Tuesday Blitz June 28 Late 2022"]
[White "Clawitter, Craig"]
[Black "Mendez Fortes, Eduardo Jesus"]
[WhiteFideId "2023105"]
[BlackFideId "3502376"]
[WhiteElo "2237"]
[BlackElo "2321"]
[Result "0-1"]
[Round "04"]
[TimeControl "180+1"]
[Date "2022.06.29"]
[WhiteClock "0:01:07"]
[BlackClock "0:01:58"]

1. e4 {[%clk 0:03:00]}  e5 {[%clk 0:02:59]} 2. Nf3 {[%clk 0:03:01]}  Nc6 {[%clk 0:03:00]} 3. Bb5 {[%clk 0:03:01]}  Nf6 {[%clk 0:03:00]} 4. d3 {[%clk 0:03:01]}  Bc5 {[%clk 0:02:59]} 5. Bxc6 {[%clk 0:03:01]}  dxc6 {[%clk 0:03:00]} 6. Nbd2 {[%clk 0:03:01]}  Bd6 {[%clk 0:03:00]} 7. O-O {[%clk 0:02:58]}  Be6 {[%clk 0:03:00]} 8. b3 {[%clk 0:02:51]}  Nd7 {[%clk 0:02:58]} 9. Nc4 {[%clk 0:02:49]}  f6 {[%clk 0:02:56]} 10. Qe2 {[%clk 0:02:31]}  Qe7 {[%clk 0:02:53]} 11. d4 {[%clk 0:02:31]}  O-O-O {[%clk 0:02:38]} 12. dxe5 {[%clk 0:02:16]}  Bxc4 {[%clk 0:02:02]} 13. Qxc4 {[%clk 0:01:38]}  Nxe5 {[%clk 0:02:00]} 14. Qd4 {[%clk 0:01:07]}  Nxf3+ {[%clk 0:01:58]} 0-1


[Site "https://www.chess.com"]

[Event "Titled Tuesday Blitz June 28 Late 2022"]
[White "Colpe, Malte"]
[Black "Sibilio, Mario"]
[WhiteFideId "24623075"]
[BlackFideId "800422"]
[WhiteElo "2328"]
[BlackElo "2296"]
[Result "1-0"]
[Round "04"]
[TimeControl "180+1"]
[Date "2022.06.29"]
[WhiteClock "0:01:24"]
[BlackClock "0:00:01"]

1. e4 {[%clk 0:03:00]}  d6 {[%clk 0:00:42]} 2. d4 {[%clk 0:02:47]}  Nf6 {[%clk 0:00:42]} 3. Nc3 {[%clk 0:02:46]}  g6 {[%clk 0:00:42]} 4. Bf4 {[%clk 0:02:44]}  Bg7 {[%clk 0:00:41]} 5. Qd2 {[%clk 0:02:44]}  Nc6 {[%clk 0:00:39]} 6. d5 {[%clk 0:02:43]}  e5 {[%clk 0:00:38]} 7. dxc6 {[%clk 0:02:26]}  exf4 {[%clk 0:00:37]} 8. cxb7 {[%clk 0:02:21]}  Bxb7 {[%clk 0:00:37]} 9. Qxf4 {[%clk 0:02:21]}  O-O {[%clk 0:00:36]} 10. Bd3 {[%clk 0:02:20]}  Re8 {[%clk 0:00:29]} 11. Nge2 {[%clk 0:02:18]}  Qe7 {[%clk 0:00:27]} 12. f3 {[%clk 0:02:11]}  Nd7 {[%clk 0:00:26]} 13. O-O {[%clk 0:02:07]}  Nc5 {[%clk 0:00:23]} 14. Rad1 {[%clk 0:02:03]}  Nxd3 {[%clk 0:00:22]} 15. cxd3 {[%clk 0:02:02]}  c5 {[%clk 0:00:14]} 16. d4 {[%clk 0:01:58]}  f5 {[%clk 0:00:10]} 17. dxc5 {[%clk 0:01:53]}  dxc5 {[%clk 0:00:09]} 18. exf5 {[%clk 0:01:53]}  Ba6 {[%clk 0:00:08]} 19. Rfe1 {[%clk 0:01:45]}  Be5 {[%clk 0:00:07]} 20. Qg4 {[%clk 0:01:39]}  Kh8 {[%clk 0:00:04]} 21. fxg6 {[%clk 0:01:36]}  Rg8 {[%clk 0:00:01]} 22. Ng3 {[%clk 0:01:24]} 1-0


[Site "https://www.chess.com"]

[Event "Titled Tuesday Blitz June 28 Late 2022"]
[White "Dauner, Benedikt"]
[Black "Curtis, John"]
[WhiteFideId "16225899"]
[BlackFideId "3200256"]
[WhiteElo "2230"]
[BlackElo "2203"]
[Result "1-0"]
[Round "04"]
[TimeControl "180+1"]
[Date "2022.06.29"]
[WhiteClock "0:00:20"]
[BlackClock "0:00:04"]

1. b3 {[%clk 0:03:00]}  Nf6 {[%clk 0:02:59]} 2. Bb2 {[%clk 0:03:01]}  c5 {[%clk 0:02:59]} 3. e3 {[%clk 0:03:00]}  e6 {[%clk 0:02:46]} 4. Nf3 {[%clk 0:02:59]}  Be7 {[%clk 0:02:46]} 5. d4 {[%clk 0:02:59]}  O-O {[%clk 0:02:45]} 6. Bd3 {[%clk 0:02:58]}  b6 {[%clk 0:02:45]} 7. O-O {[%clk 0:02:58]}  Bb7 {[%clk 0:02:45]} 8. Nbd2 {[%clk 0:02:58]}  Nc6 {[%clk 0:02:44]} 9. a3 {[%clk 0:02:58]}  d5 {[%clk 0:02:36]} 10. Qe2 {[%clk 0:02:57]}  Rc8 {[%clk 0:02:31]} 11. Rfe1 {[%clk 0:02:54]}  Qc7 {[%clk 0:02:28]} 12. Rac1 {[%clk 0:02:46]}  cxd4 {[%clk 0:02:20]} 13. exd4 {[%clk 0:02:45]}  Bd6 {[%clk 0:02:08]} 14. Ne5 {[%clk 0:02:42]}  Qe7 {[%clk 0:01:53]} 15. Ra1 {[%clk 0:02:34]}  Nd7 {[%clk 0:01:47]} 16. f4 {[%clk 0:02:26]}  Rfe8 {[%clk 0:01:21]} 17. Qh5 {[%clk 0:02:05]}  g6 {[%clk 0:01:14]} 18. Qh3 {[%clk 0:01:58]}  f5 {[%clk 0:01:07]} 19. Nxd7 {[%clk 0:01:47]}  Qxd7 {[%clk 0:01:07]} 20. g3 {[%clk 0:01:41]}  Bf8 {[%clk 0:01:06]} 21. Re2 {[%clk 0:01:39]}  Bg7 {[%clk 0:01:05]} 22. c3 {[%clk 0:01:40]}  h5 {[%clk 0:00:45]} 23. Rae1 {[%clk 0:01:39]}  Nd8 {[%clk 0:00:40]} 24. Qg2 {[%clk 0:01:36]}  Nf7 {[%clk 0:00:39]} 25. a4 {[%clk 0:01:01]}  Nd6 {[%clk 0:00:38]} 26. h3 {[%clk 0:00:36]}  Ne4 {[%clk 0:00:38]} 27. Bxe4 {[%clk 0:00:36]}  dxe4 {[%clk 0:00:34]} 28. Nc4 {[%clk 0:00:35]}  Ba6 {[%clk 0:00:31]} 29. Ne3 {[%clk 0:00:29]}  Bxe2 {[%clk 0:00:30]} 30. Qxe2 {[%clk 0:00:30]}  Rc7 {[%clk 0:00:28]} 31. Rd1 {[%clk 0:00:29]}  Rec8 {[%clk 0:00:26]} 32. c4 {[%clk 0:00:29]}  Rd8 {[%clk 0:00:22]} 33. d5 {[%clk 0:00:28]}  Bxb2 {[%clk 0:00:09]} 34. Qxb2 {[%clk 0:00:29]}  Qg7 {[%clk 0:00:09]} 35. Qe2 {[%clk 0:00:26]}  Rcd7 {[%clk 0:00:08]} 36. Kh2 {[%clk 0:00:25]}  exd5 {[%clk 0:00:08]} 37. Nxd5 {[%clk 0:00:26]}  Rxd5 {[%clk 0:00:07]} 38. cxd5 {[%clk 0:00:26]}  Qc3 {[%clk 0:00:04]} 39. d6 {[%clk 0:00:20]} 1-0


[Site "https://www.chess.com"]